fUST/lending_fUST_20241127
["ID","MTS","AMOUNT","RATE_DAILY","PERIOD"]
[343465405,1732642235438,-500.0,0.00027967,3]
[343465406,1732642235449,-500.0,0.00027967,3]
[343465407,1732642235460,-9111.53809408,0.00027998,2]
[343465408,1732642235471,-544.07048006,0.00028,2]
[343465409,1732642235483,-1819.37,0.00028092,3]
[343465410,1732642235495,-765.82,0.00028092,3]
[343465411,1732642235506,-151.0,0.00028093,7]
[343465412,1732642235518,-187.097812,0.00028093,7]
[343465413,1732642235530,-2430.55,0.00028193,3]
[343465414,1732642235542,-151.0,0.00028235,6]
[343465415,1732642235554,-1341.27329762,0.00028309,2]
[343465416,1732642235567,-559.10962927,0.00028372,2]
[343465417,1732642235578,-559.10962923,0.00028372,2]
[343465418,1732642235591,-559.10962923,0.00028373,2]
[343465419,1732642235602,-559.10962923,0.00028373,2]
[343465420,1732642235614,-151.0,0.00028373,7]
[343465421,1732642235624,-645.530864,0.00028373,7]
[343465422,1732642235636,-645.530864,0.00028373,7]
[343465423,1732642235647,-559.10962923,0.00028373,2]
[343465424,1732642235658,-196.28653,0.00028373,7]
[343465425,1732642235669,-151.0,0.00028373,7]
[343465426,1732642235680,-500.0,0.00028397,3]
[343465427,1732642235693,-500.0,0.00028397,3]
[343465428,1732642235704,-1819.37,0.00028397,3]
[343465429,1732642235715,-500.0,0.00028397,3]
[343465430,1732642235727,-765.82,0.00028397,3]
[343465431,1732642235738,-2430.55,0.00028398,3]
[343465432,1732642235749,-151.0,0.00028399,7]
[343465433,1732642235889,-1239.750705,0.00028399,7]
[343465434,1732642235910,-1239.750705,0.00028399,7]
[343465435,1732642235920,-151.0,0.00028399,7]
[343465436,1732642235930,-166.689308,0.00028399,7]
[343465437,1732642235940,-151.0,0.000284,7]
[343465438,1732642235950,-151.0,0.000284,7]
[343465439,1732642235960,-151.0,0.000284,7]
[343465440,1732642235970,-151.0,0.000284,7]
[343465441,1732642235981,-151.0,0.000284,7]
[343465442,1732642235991,-151.0,0.000284,7]
[343465443,1732642236001,-1239.750705,0.000284,7]
[343465444,1732642236011,-1239.750705,0.000284,7]
[343465445,1732642236021,-1239.750705,0.000284,7]
[343465446,1732642236031,-1239.750705,0.000284,7]
[343465447,1732642236042,-1819.37,0.00028467,3]
[343465448,1732642236052,-765.82,0.00028467,3]
[343465449,1732642236063,-427.74751973,0.00028467,2]
[343465450,1732642236083,-357.89644549,0.00028467,2]
[343465451,1732642236092,-500.0,0.00028467,2]
[343465452,1732642236102,-500.0,0.00028468,3]
[343465453,1732642236113,-500.0,0.00028468,3]
[343465454,1732642236124,-2430.55,0.00028468,3]
[343465455,1732642236134,-500.0,0.00028468,3]
[343465456,1732642236143,-151.0,0.00028469,7]
[343465457,1732642236154,-1239.750705,0.00028469,7]
[343465458,1732642236165,-1239.750705,0.00028469,7]
[343465459,1732642236176,-367.337592,0.00028469,7]
[343465460,1732642236187,-367.337592,0.00028469,7]
[343465461,1732642236196,-500.0,0.00028469,3]
[343465462,1732642236206,-500.0,0.00028469,3]
[343465463,1732642236215,-2430.55,0.00028469,3]
[343465464,1732642236226,-1819.37,0.00028469,3]
[343465465,1732642236236,-500.0,0.00028469,3]
[343465466,1732642236245,-765.82,0.00028469,3]
[343465467,1732642236255,-487.084408,0.00028469,7]
[343465468,1732642236265,-487.084408,0.00028469,7]
[343465469,1732642236275,-151.0,0.0002847,7]
[343465470,1732642236286,-151.0,0.0002847,7]
[343465471,1732642236295,-151.0,0.0002847,7]
[343465472,1732642236305,-151.0,0.0002847,7]
[343465473,1732642236318,-151.0,0.0002847,7]
[343465474,1732642236328,-151.0,0.0002847,7]
[343465475,1732642236337,-1239.750705,0.0002847,7]
[343465476,1732642236347,-1239.750705,0.0002847,7]
[343465477,1732642236356,-1239.750705,0.0002847,7]
[343465478,1732642236366,-1239.750705,0.0002847,7]
[343465479,1732642236376,-151.0,0.0002847,7]
[343465480,1732642236386,-151.0,0.0002847,7]
[343465481,1732642236395,-210.647302,0.0002847,7]
[343465482,1732642236404,-210.647302,0.0002847,7]
[343465483,1732642236415,-151.0,0.0002847,7]
[343465484,1732642236424,-151.0,0.0002847,7]
[343465485,1732642236434,-645.530864,0.0002847,7]
[343465486,1732642236444,-645.530864,0.0002847,7]
[343465487,1732642236453,-151.0,0.0002847,7]
[343465488,1732642236462,-151.0,0.0002847,7]
[343465489,1732642236472,-500.0,0.0002847,3]
[343465490,1732642236482,-500.0,0.0002847,3]
[343465491,1732642236492,-500.0,0.0002847,3]
[343465492,1732642236501,-500.0,0.0002847,3]
[343465493,1732642236512,-2430.55,0.0002847,3]
[343465494,1732642236522,-2430.55,0.0002847,3]
[343465495,1732642236533,-1819.37,0.0002847,3]
[343465496,1732642236543,-1819.37,0.0002847,3]
[343465497,1732642236553,-1819.37,0.0002847,3]
[343465498,1732642236562,-215.8,0.0002847,3]
[343465499,1732642236575,-151.0,0.0002847,7]
[343465500,1732642236586,-765.82,0.0002847,3]
[343465501,1732642236595,-765.82,0.0002847,3]
[343465502,1732642236605,-765.82,0.0002847,3]
[343465503,1732642236615,-202.036176,0.00028471,7]
[343465504,1732642236626,-202.036176,0.00028471,7]
[343465505,1732642236635,-202.036176,0.00028471,7]
[343465506,1732642236646,-202.036176,0.00028471,7]
[343465507,1732642236656,-202.036176,0.00028471,7]
[343465508,1732642236667,-202.036176,0.00028471,7]
[343465509,1732642236677,-202.036176,0.00028471,7]
[343465510,1732642236686,-202.036176,0.00028471,7]
[343465511,1732642236696,-151.0,0.00028471,7]
[343465512,1732642236706,-151.0,0.00028471,7]
[343465513,1732642236716,-151.0,0.00028471,7]
[343465514,1732642236726,-151.0,0.00028471,7]
[343465515,1732642236735,-151.0,0.00028471,7]
[343465516,1732642236745,-151.0,0.00028471,7]
[343465517,1732642236755,-151.0,0.00028471,7]
[343465518,1732642236764,-151.0,0.00028471,7]
[343465519,1732642236774,-262.8027,0.00028471,7]
[343465520,1732642236784,-1239.750705,0.00028471,7]
[343465521,1732642236794,-1239.750705,0.00028471,7]
[343465522,1732642236804,-1239.750705,0.00028471,7]
[343465523,1732642236817,-1239.750705,0.00028471,7]
[343465524,1732642236826,-1239.750705,0.00028471,7]
[343465525,1732642236836,-1239.7507,0.00028471,7]
[343465526,1732642236846,-1316.172882,0.00028471,7]
[343465527,1732642236855,-1316.172882,0.00028471,7]
[343465528,1732642236865,-225.903999,0.00028471,7]
[343465529,1732642236877,-225.903999,0.00028471,7]
[343465530,1732642236886,-192.191613,0.00028471,7]
[343465531,1732642236896,-151.0,0.00028471,7]
[343465532,1732642236905,-192.191613,0.00028471,7]
[343465533,1732642236915,-151.0,0.00028471,7]
[343465534,1732642236924,-1995.83387,0.00028471,7]
[343465535,1732642236934,-1995.83387,0.00028471,7]
[343465536,1732642236944,-151.0,0.00028471,7]
[343465537,1732642236954,-367.337592,0.00028471,7]
[343465538,1732642236963,-672.754165,0.00028471,7]
[343465539,1732642236973,-367.337592,0.00028471,7]
[343465540,1732642236982,-672.754165,0.00028471,7]
[343465541,1732642236992,-151.0,0.00028471,7]
[343465542,1732642237002,-500.0,0.00028471,3]
[343465543,1732642237011,-500.0,0.00028471,3]
[343465544,1732642237021,-500.0,0.00028471,3]
[343465545,1732642237030,-500.0,0.00028471,3]
[343465546,1732642237040,-198.13,0.00028471,3]
[343465547,1732642237049,-483.64,0.00028471,3]
[343465548,1732642237059,-2430.55,0.00028471,3]
[343465549,1732642237071,-2430.55,0.00028471,3]
[343465550,1732642237082,-2430.55,0.00028471,3]
[343465551,1732642237091,-2430.55,0.00028471,3]
[343465552,1732642237101,-2430.55,0.00028471,3]
[343465553,1732642237111,-2430.55,0.00028471,3]
[343465554,1732642237124,-2430.55,0.00028471,3]
[343465555,1732642237134,-2430.55,0.00028471,3]
[343465556,1732642237144,-2430.75,0.00028471,3]
[343465557,1732642237155,-1819.37,0.00028471,3]
[343465558,1732642237166,-1819.37,0.00028471,3]
[343465559,1732642237176,-1819.37,0.00028471,3]
[343465560,1732642237186,-151.0,0.00028471,7]
[343465561,1732642237197,-765.82,0.00028471,3]
[343465562,1732642237207,-765.82,0.00028471,3]
[343465563,1732642237216,-765.82,0.00028471,3]
[343465564,1732642237226,-487.084408,0.00028471,7]
[343465565,1732642237235,-487.084408,0.00028471,7]
[343465566,1732642237245,-151.0,0.00028472,7]
[343465567,1732642237255,-151.0,0.00028472,7]
[343465568,1732642237264,-151.0,0.00028472,7]
[343465569,1732642237273,-151.0,0.00028472,7]
[343465570,1732642237283,-151.0,0.00028472,7]
[343465571,1732642237293,-599.497093,0.00028472,7]
[343465572,1732642237302,-151.0,0.00028472,7]
[343465573,1732642237312,-151.0,0.00028472,7]
[343465574,1732642237324,-233.969261,0.00028472,7]
[343465575,1732642237334,-354.719113,0.00028472,7]
[343465576,1732642237343,-354.719113,0.00028472,7]
[343465577,1732642237353,-354.719113,0.00028472,7]
[343465578,1732642237362,-354.719113,0.00028472,7]
[343465579,1732642237373,-354.719113,0.00028472,7]
[343465580,1732642237382,-354.719113,0.00028472,7]
[343465581,1732642237391,-354.719113,0.00028472,7]
[343465582,1732642237402,-354.719113,0.00028472,7]
[343465583,1732642237412,-202.036176,0.00028472,7]
[343465584,1732642237422,-202.036176,0.00028472,7]
[343465585,1732642237431,-202.036176,0.00028472,7]
[343465586,1732642237441,-202.036176,0.00028472,7]
[343465587,1732642237450,-202.036176,0.00028472,7]
[343465588,1732642237459,-202.036176,0.00028472,7]
[343465589,1732642237469,-202.036176,0.00028472,7]
[343465590,1732642237479,-202.03618,0.00028472,7]
[343465591,1732642237488,-151.0,0.00028472,7]
[343465592,1732642237498,-151.0,0.00028472,7]
[343465593,1732642237507,-151.0,0.00028472,7]
[343465594,1732642237516,-524.458768,0.00028472,7]
[343465595,1732642237526,-524.458768,0.00028472,7]
[343465596,1732642237536,-524.458768,0.00028472,7]
[343465597,1732642237545,-524.458768,0.00028472,7]
[343465598,1732642237555,-524.458768,0.00028472,7]
[343465599,1732642237567,-524.458768,0.00028472,7]
[343465600,1732642237577,-1316.172882,0.00028472,7]
[343465601,1732642237588,-1316.172882,0.00028472,7]
[343465602,1732642237598,-1316.172882,0.00028472,7]
[343465603,1732642237608,-1316.172882,0.00028472,7]
[343465604,1732642237617,-1316.172882,0.00028472,7]
[343465605,1732642237626,-1316.172882,0.00028472,7]
[343465606,1732642237636,-225.903999,0.00028472,7]
[343465607,1732642237645,-225.903999,0.00028472,7]
[343465608,1732642237654,-225.903999,0.00028472,7]
[343465609,1732642237664,-225.903999,0.00028472,7]
[343465610,1732642237673,-225.903999,0.00028472,7]
[343465612,1732642237683,-225.903999,0.00028472,7]
[343465614,1732642237692,-192.191613,0.00028472,7]
[343465615,1732642237702,-192.191613,0.00028472,7]
[343465616,1732642237711,-151.0,0.00028472,7]
[343465617,1732642237721,-151.0,0.00028472,7]
[343465618,1732642237730,-151.0,0.00028472,7]
[343465621,1732642237739,-192.191613,0.00028472,7]
[343465623,1732642237749,-192.191613,0.00028472,7]
[343465625,1732642237758,-151.0,0.00028472,7]
[343465627,1732642237767,-151.0,0.00028472,7]
[343465629,1732642237777,-1995.83387,0.00028472,7]
[343465631,1732642237786,-1995.83387,0.00028472,7]
[343465633,1732642237796,-1995.83387,0.00028472,7]
[343465635,1732642237806,-1995.83387,0.00028472,7]
[343465637,1732642237820,-1995.83387,0.00028472,7]
[343465639,1732642237831,-1995.83387,0.00028472,7]
[343465641,1732642237840,-151.0,0.00028472,7]
[343465643,1732642237849,-151.0,0.00028472,7]
[343465645,1732642237859,-151.0,0.00028472,7]
[343465647,1732642237868,-151.0,0.00028472,7]
[343465649,1732642237877,-151.0,0.00028472,7]
[343465651,1732642237887,-151.0,0.00028472,7]
[343465653,1732642237896,-210.647302,0.00028472,7]
[343465655,1732642237906,-210.647302,0.00028472,7]
[343465657,1732642237916,-210.647302,0.00028472,7]
[343465659,1732642237925,-210.647302,0.00028472,7]
[343465660,1732642237935,-210.647302,0.00028472,7]
[343465662,1732642237944,-210.647302,0.00028472,7]
[343465664,1732642237954,-367.337592,0.00028472,7]
[343465665,1732642237964,-367.337592,0.00028472,7]
[343465667,1732642237973,-367.337592,0.00028472,7]
[343465670,1732642237983,-672.754165,0.00028472,7]
[343465671,1732642237994,-151.0,0.00028472,7]
[343465672,1732642238003,-672.754165,0.00028472,7]
[343465673,1732642238014,-672.754165,0.00028472,7]
[343465674,1732642238024,-249.629065,0.00028472,7]
[343465675,1732642238033,-367.337592,0.00028472,7]
[343465676,1732642238043,-367.337592,0.00028472,7]
[343465677,1732642238052,-367.337592,0.00028472,7]
[343465678,1732642238062,-672.754165,0.00028472,7]
[343465679,1732642238083,-672.754165,0.00028472,7]
[343465681,1732642238092,-672.754165,0.00028472,7]
[343465683,1732642238102,-151.0,0.00028472,7]
[343465685,1732642238112,-151.0,0.00028472,7]
[343465687,1732642238125,-151.0,0.00028472,7]
[343465689,1732642238134,-151.0,0.00028472,7]
[343465691,1732642238145,-151.0,0.00028472,7]
[343465693,1732642238155,-151.0,0.00028472,7]
[343465695,1732642238164,-645.530864,0.00028472,7]
[343465697,1732642238174,-645.530864,0.00028472,7]
[343465699,1732642238183,-645.530864,0.00028472,7]
[343465701,1732642238195,-645.530864,0.00028472,7]
[343465703,1732642238205,-645.530864,0.00028472,7]
[343465705,1732642238214,-645.530864,0.00028472,7]
[343465707,1732642238224,-151.0,0.00028472,7]
[343465709,1732642238234,-151.0,0.00028472,7]
[343465711,1732642238244,-279.132404,0.00028472,7]
[343465713,1732642238254,-151.0,0.00028472,7]
[343465715,1732642238263,-151.0,0.00028472,7]
[343465717,1732642238273,-151.0,0.00028472,7]
[343465719,1732642238283,-1819.37,0.00028472,3]
[343465721,1732642238292,-1819.37,0.00028472,3]
[343465723,1732642238302,-1819.37,0.00028472,3]
[343465725,1732642238312,-1819.37,0.00028472,3]
[343465727,1732642238329,-1819.37,0.00028472,3]
[343465729,1732642238339,-1819.37,0.00028472,3]
[343465731,1732642238348,-1819.42434571,0.00028472,3]
[343465733,1732642238357,-151.0,0.00028472,7]
[343465735,1732642238367,-217.101304,0.00028472,7]
[343465737,1732642238376,-765.82,0.00028472,3]
[343465739,1732642238385,-765.82,0.00028472,3]
[343465741,1732642238394,-765.82,0.00028472,3]
[343465743,1732642238403,-765.82,0.00028472,3]
[343465745,1732642238412,-765.82,0.00028472,3]
[343465747,1732642238421,-765.82,0.00028472,3]
[343465750,1732642238431,-765.97766471,0.00028472,3]
[343465753,1732642238440,-487.084408,0.00028472,7]
[343465768,1732642238558,-487.084408,0.00028472,7]
[343465769,1732642238574,-487.084408,0.00028472,7]
[343465770,1732642238583,-487.084408,0.00028472,7]
[343465771,1732642238593,-1183.26199521,0.00028472,2]
[343465772,1732642238604,-2563172.45209858,0.00028472,15]
[343465773,1732642238613,-500.0,0.00028473,5]
[343465774,1732642238622,-500.0,0.00028473,5]
[343465775,1732642238632,-500.0,0.00028473,5]
[343465776,1732642238641,-500.94417117,0.00028473,5]
[343465777,1732642238651,-187.87721885,0.00028473,5]
[343465778,1732642238661,-151.0,0.00028486,7]
[343465779,1732642238671,-312.10267297,0.0002855,2]
[343465780,1732642238681,-151.0,0.00028737,7]
[343465781,1732642238700,-500.0,0.00028767,4]
[343465782,1732642238713,-153.0,0.00028959,30]
[343465783,1732642238729,-151.0,0.00028988,7]
[343465784,1732642238752,-1341.27329762,0.0002899,2]
[343465786,1732642238762,-798.87551208,0.00029,2]
[343465788,1732642238771,-7209.1048129,0.00029,20]
[343465790,1732642238781,-1000.0,0.00029021,5]
[343465792,1732642238791,-1000.0,0.00029021,5]
[343465794,1732642238802,-183.464853,0.00029236,7]
[343465796,1732642238811,-599.497093,0.00029236,7]
[343465798,1732642238827,-599.497093,0.00029237,7]
[343465800,1732642238837,-524.458768,0.00029237,7]
[343465802,1732642238847,-524.458768,0.00029237,7]
[343465804,1732642238856,-151.0,0.00029239,7]
[343465806,1732642238865,-192.191613,0.000293,7]
[343465808,1732642238874,-192.191613,0.000293,7]
[343465810,1732642238885,-173.39,0.000293,31]
[343465812,1732642238895,-173.39,0.000293,31]
[343465814,1732642238904,-173.39,0.000293,31]
[343465816,1732642238914,-173.39,0.000293,31]
[343465818,1732642238925,-173.39,0.000293,31]
[343465820,1732642238934,-173.39,0.000293,31]
[343465822,1732642238943,-173.39,0.000293,31]
[343465824,1732642238953,-173.39,0.000293,31]
[343465826,1732642238963,-173.39,0.000293,31]
[343465828,1732642238972,-173.39,0.000293,31]
[343465830,1732642238981,-173.39,0.000293,31]
[343465832,1732642238990,-173.39,0.000293,31]
[343465834,1732642239000,-1316.172882,0.00029335,7]
[343465836,1732642239009,-1316.172882,0.00029335,7]
[343465838,1732642239019,-1995.83387,0.00029335,7]
[343465840,1732642239028,-1995.83387,0.00029335,7]
[343465842,1732642239037,-172.596213,0.00029335,2]
[343465844,1732642239047,-1333.398861,0.00029335,2]
[343465846,1732642239056,-599.497087,0.00029336,7]
[343465848,1732642239069,-225.903999,0.00029336,7]
[343465850,1732642239078,-225.903999,0.00029336,7]
[343465852,1732642239087,-151.0,0.00029336,7]
[343465854,1732642239097,-672.754165,0.00029336,7]
[343465856,1732642239106,-672.754165,0.00029336,7]
[343465858,1732642239116,-151.0,0.00029336,7]
[343465860,1732642239127,-151.0,0.00029337,7]
[343465862,1732642239136,-151.0,0.00029337,7]
[343465864,1732642239146,-150.01,0.00029337,2]
[343465866,1732642239155,-12223.41900863,0.00029337,2]
[343465868,1732642239166,-151.0,0.00029337,7]
[343465870,1732642239175,-230.77165496,0.00029337,7]
[343465872,1732642239184,-210.647302,0.00029337,7]
[343465874,1732642239194,-210.647302,0.00029337,7]
[343465876,1732642239204,-367.337592,0.00029337,7]
[343465878,1732642239213,-367.337592,0.00029337,7]
[343465880,1732642239222,-170.417129,0.00029338,7]
[343465882,1732642239231,-170.417129,0.00029338,7]
[343465884,1732642239240,-587.0,0.00029338,2]
[343465886,1732642239250,-192.191613,0.000294,7]
[343465888,1732642239259,-192.191613,0.000294,7]
[343465890,1732642239268,-8257.58270929,0.000294,7]
[343465892,1732642239277,-151.0,0.000294,7]
[343465894,1732642239286,-645.530864,0.000294,7]
[343465896,1732642239295,-645.530864,0.000294,7]
[343465898,1732642239305,-151.0,0.000294,7]
[343465900,1732642239317,-487.084408,0.000294,7]
[343465903,1732642239332,-487.084408,0.000294,7]
[343465905,1732642239341,-151.0,0.00029434,7]
[343465906,1732642239350,-170.417129,0.00029436,7]
[343465908,1732642239359,-170.417129,0.00029436,7]
[343465910,1732642239369,-524.458768,0.00029436,7]
[343465912,1732642239378,-524.458768,0.00029436,7]
[343465914,1732642239387,-1316.172882,0.00029437,7]
[343465916,1732642239396,-1316.172882,0.00029437,7]
[343465918,1732642239405,-1995.83387,0.00029437,7]
[343465920,1732642239415,-1995.83387,0.00029437,7]
[343465922,1732642239423,-150.0,0.00029438,2]
[343465924,1732642239432,-531.0,0.00029438,2]
[343465926,1732642239442,-2378.0,0.00029438,2]
[343465928,1732642239451,-1105.0,0.00029438,2]
[343465930,1732642239461,-1375.40234587,0.00029481,12]
[343465932,1732642239470,-151.0,0.0002949,7]
[343465934,1732642239480,-300.0,0.000295,14]
[343465936,1732642239489,-150.0,0.00029563,2]
[343465938,1732642239498,-150.0,0.00029563,2]
[343465940,1732642239507,-150.0,0.00029563,2]
[343465942,1732642239517,-153.800131,0.00029563,7]
[343465944,1732642239526,-151.0,0.00029563,7]
[343465947,1732642239535,-186.0,0.000296,2]
[343465950,1732642239544,-225.903999,0.000296,7]
[343465953,1732642239553,-225.903999,0.000296,7]
[343465955,1732642239563,-2325.58,0.000296,2]
[343465957,1732642239575,-672.754165,0.000296,7]
[343465959,1732642239585,-672.754165,0.000296,7]
[343465961,1732642239594,-151.0,0.000296,7]
[343465963,1732642239603,-151.0,0.00029606,2]
[343465966,1732642239612,-170.417129,0.00029634,7]
[343465968,1732642239621,-170.417129,0.00029634,7]
[343465971,1732642239630,-4719.223,0.00029634,2]
[343465973,1732642239639,-6928.95981997,0.00029638,7]
[343465977,1732642239660,-1009.10568643,0.00029643,3]
[343465980,1732642239673,-500.0,0.00029655,11]
[343465982,1732642239684,-500.0,0.00029655,11]
[343465984,1732642239694,-367.337592,0.00029656,7]
[343465986,1732642239704,-367.337592,0.00029656,7]
[343465988,1732642239714,-151.0,0.0002967,7]
[343465990,1732642239724,-210.647302,0.0002967,7]
[343465992,1732642239734,-210.647302,0.0002967,7]
[343465994,1732642239744,-1341.27329762,0.00029672,2]
[343465996,1732642239754,-80382.31622342,0.000297,120]
[343466065,1732642240431,-500.0,0.00027397,3]
[343466067,1732642240441,-500.0,0.00027397,3]
[343466069,1732642240450,-1013.41,0.00028461,10]
[343466072,1732642240459,-408.68801934,0.00028467,2]
[343466074,1732642240469,-156.77578553,0.00028467,2]
[343466076,1732642240478,-500.0,0.00028467,2]
[343466078,1732642240487,-49668.6837758,0.000297,120]
[343466080,1732642240496,-1333.398861,0.00029702,2]
[343466082,1732642240506,-150.11,0.00029738,7]
[343466084,1732642240516,-150.11,0.00029738,7]
[343466086,1732642240525,-200.46684024,0.00029738,7]
[343466088,1732642240535,-500.0,0.00029738,7]
[343466090,1732642240544,-500.0,0.00029738,7]
[343466092,1732642240553,-500.0,0.00029738,7]
[343466094,1732642240563,-150.11,0.00029738,2]
[343466096,1732642240576,-500.0,0.00029738,7]
[343466098,1732642240586,-170.417129,0.0002974,7]
[343466100,1732642240596,-170.417129,0.0002974,7]
[343466102,1732642240605,-151.0,0.00029741,7]
[343466104,1732642240615,-3000.0,0.0002975,30]
[343466106,1732642240625,-170.417129,0.00029754,7]
[343466109,1732642240636,-170.417129,0.00029754,7]
[343466111,1732642240645,-170.417129,0.00029754,7]
[343466113,1732642240655,-170.417129,0.00029754,7]
[343466115,1732642240664,-524.458768,0.00029754,7]
[343466117,1732642240673,-524.458768,0.00029754,7]
[343466119,1732642240684,-192.191613,0.00029754,7]
[343466121,1732642240694,-192.191613,0.00029754,7]
[343466123,1732642240703,-170.417129,0.00029755,7]
[343466125,1732642240713,-170.417129,0.00029755,7]
[343466127,1732642240723,-170.417129,0.00029755,7]
[343466129,1732642240732,-170.417129,0.00029755,7]
[343466131,1732642240742,-1316.172882,0.00029755,7]
[343466133,1732642240752,-1316.172882,0.00029755,7]
[343466135,1732642240762,-1995.83387,0.00029755,7]
[343466137,1732642240771,-1995.83387,0.00029755,7]
[343466139,1732642240781,-151.0,0.00029755,7]
[343466141,1732642240791,-645.530864,0.00029755,7]
[343466143,1732642240800,-645.530864,0.00029755,7]
[343466145,1732642240810,-151.0,0.00029755,7]
[343466147,1732642240831,-487.084408,0.00029755,7]
[343466149,1732642240841,-487.084408,0.00029755,7]
[343466151,1732642240851,-170.417129,0.00029757,7]
[343466153,1732642240861,-170.417129,0.00029757,7]
[343466155,1732642240871,-170.417129,0.00029757,7]
[343466157,1732642240880,-170.417121,0.00029757,7]
[343466159,1732642240889,-524.458768,0.00029768,7]
[343466161,1732642240899,-524.458768,0.00029768,7]
[343466163,1732642240908,-524.458768,0.00029768,7]
[343466165,1732642240918,-524.458768,0.00029768,7]
[343466167,1732642240927,-524.458768,0.00029768,7]
[343466180,1732642240937,-524.458768,0.00029768,7]
[343466183,1732642241056,-524.458768,0.00029768,7]
[343466185,1732642241070,-524.458762,0.00029768,7]
[343466187,1732642241080,-1316.172882,0.0002977,7]
[343466189,1732642241090,-1316.172882,0.0002977,7]
[343466191,1732642241099,-1316.172882,0.0002977,7]
[343466193,1732642241109,-1316.172882,0.0002977,7]
[343466195,1732642241122,-1316.172882,0.0002977,7]
[343466197,1732642241131,-1316.17288959,0.0002977,7]
[343466199,1732642241140,-225.903999,0.0002977,7]
[343466201,1732642241151,-225.903999,0.0002977,7]
[343466203,1732642241161,-225.903999,0.0002977,7]
[343466204,1732642241171,-225.903999,0.0002977,7]
[343466206,1732642241181,-225.903999,0.0002977,7]
[343466208,1732642241192,-225.903999,0.0002977,7]
[343466210,1732642241202,-225.903999,0.0002977,7]
[343466211,1732642241212,-225.903998,0.0002977,7]
[343466213,1732642241221,-151.0,0.0002977,7]
[343466215,1732642241230,-151.0,0.0002977,7]
[343466217,1732642241240,-192.191613,0.0002977,7]
[343466219,1732642241249,-192.191613,0.0002977,7]
[343466221,1732642241259,-192.191613,0.0002977,7]
[343466222,1732642241268,-192.191613,0.0002977,7]
[343466224,1732642241277,-151.0,0.0002977,7]
[343466226,1732642241287,-151.0,0.0002977,7]
[343466228,1732642241296,-254.386255,0.0002977,7]
[343466229,1732642241305,-192.191613,0.0002977,7]
[343466231,1732642241315,-192.191613,0.0002977,7]
[343466233,1732642241328,-192.191613,0.0002977,7]
[343466235,1732642241338,-192.191611,0.0002977,7]
[343466237,1732642241347,-1995.83387,0.0002977,7]
[343466238,1732642241356,-1995.83387,0.0002977,7]
[343466240,1732642241366,-1995.83387,0.0002977,7]
[343466242,1732642241375,-1995.83387,0.0002977,7]
[343466244,1732642241384,-1995.83387,0.0002977,7]
[343466245,1732642241394,-1995.83386,0.0002977,7]
[343466247,1732642241404,-151.0,0.0002977,7]
[343466249,1732642241414,-151.0,0.0002977,7]
[343466251,1732642241423,-151.0,0.0002977,7]
[343466253,1732642241432,-151.0,0.0002977,7]
[343466255,1732642241442,-210.647302,0.0002977,7]
[343466256,1732642241451,-210.647302,0.0002977,7]
[343466258,1732642241460,-210.647302,0.0002977,7]
[343466260,1732642241470,-210.647302,0.0002977,7]
[343466262,1732642241479,-210.647302,0.0002977,7]
[343466264,1732642241489,-210.647302,0.0002977,7]
[343466265,1732642241498,-210.647302,0.0002977,7]